fUSD/lending_fUSD_20260425
["ID","MTS","AMOUNT","RATE_DAILY","PERIOD"]
[421126547,1777116632184,-150.0,8.911e-05,2]
[421126548,1777116632194,-150.0,8.974e-05,2]
[421126549,1777116632205,-391.01672054,9e-05,3]
[421126550,1777116632230,-487.38503545,9e-05,3]
[421126551,1777116632242,-321.59824401,9e-05,3]
[421126552,1777116632252,-150.0,9.005e-05,2]
[421126553,1777116632262,-150.0,9.005e-05,2]
[421126554,1777116632272,-150.0,9.037e-05,2]
[421126555,1777116632282,-150.0,9.1e-05,2]
[421126556,1777116632292,-282.0,9.157e-05,2]
[421126557,1777116632303,-150.0,9.163e-05,2]
[421126558,1777116632313,-150.0,9.163e-05,2]
[421126559,1777116632323,-150.0,9.163e-05,2]
[421126560,1777116632333,-343.0,9.17e-05,2]
[421126561,1777116632343,-150.0,9.227e-05,2]
[421126562,1777116632353,-150.0,9.242e-05,2]
[421126563,1777116632362,-178.21,9.265e-05,2]
[421126564,1777116632379,-150.0,9.29e-05,2]
[421126565,1777116632389,-1283.794,9.29e-05,2]
[421126566,1777116632400,-172.298,9.29e-05,2]
[421126567,1777116632410,-150.0,9.353e-05,2]
[421126568,1777116632421,-151.0,9.367e-05,2]
[421126569,1777116632431,-151.0,9.367e-05,2]
[421126570,1777116632442,-150.0,9.416e-05,2]
[421126571,1777116632453,-150.0,9.478e-05,2]
[421126572,1777116632463,-500.0,9.479e-05,2]
[421126573,1777116632473,-603.61783823,9.479e-05,2]
[421126574,1777116632483,-500.0,9.479e-05,2]
[421126575,1777116632494,-500.0,9.479e-05,2]
[421126576,1777116632504,-500.0,9.479e-05,2]
[421126578,1777116632514,-500.0,9.479e-05,2]
[421126580,1777116632525,-500.0,9.479e-05,2]
[421126582,1777116632535,-500.0,9.479e-05,2]
[421126584,1777116632546,-500.0,9.479e-05,2]
[421126585,1777116632556,-500.0,9.479e-05,2]
[421126586,1777116632566,-500.0,9.479e-05,2]
[421126587,1777116632577,-500.0,9.479e-05,2]
[421126588,1777116632588,-500.0,9.479e-05,2]
[421126589,1777116632599,-500.0,9.479e-05,2]
[421126590,1777116632609,-500.0,9.479e-05,2]
[421126591,1777116632620,-500.0,9.479e-05,2]
[421126592,1777116632630,-500.0,9.479e-05,2]
[421126593,1777116632641,-500.0,9.479e-05,2]
[421126594,1777116632652,-465.93054876,9.479e-05,2]
[421126595,1777116632662,-500.0,9.479e-05,2]
[421126596,1777116632672,-183.1831921,9.479e-05,2]
[421126597,1777116632683,-196.37199307,9.479e-05,2]
[421126598,1777116632693,-500.0,9.479e-05,2]
[421126599,1777116632703,-500.0,9.479e-05,2]
[421126600,1777116632714,-518.1316577,9.479e-05,2]
[421126601,1777116632724,-507.60294501,9.479e-05,2]
[421126602,1777116632735,-500.0,9.479e-05,2]
[421126603,1777116632745,-500.0,9.479e-05,2]
[421126604,1777116632760,-500.0,9.479e-05,2]
[421126605,1777116632771,-500.0,9.479e-05,2]
[421126606,1777116632781,-500.0,9.479e-05,2]
[421126607,1777116632791,-500.0,9.479e-05,2]
[421126608,1777116632802,-500.0,9.479e-05,2]
[421126609,1777116632813,-500.0,9.479e-05,2]
[421126610,1777116632823,-500.0,9.479e-05,2]
[421126611,1777116632834,-500.0,9.479e-05,2]
[421126612,1777116632845,-500.0,9.479e-05,2]
[421126613,1777116632855,-500.0,9.479e-05,2]
[421126614,1777116632867,-333.34159226,9.479e-05,2]
[421126615,1777116632877,-150.0,9.479e-05,2]
[421126616,1777116632888,-150.0,9.479e-05,2]
[421126617,1777116632899,-240.30270347,9.479e-05,2]
[421126618,1777116632910,-150.0,9.479e-05,2]
[421126619,1777116632921,-150.0,9.479e-05,2]
[421126620,1777116632932,-500.0,9.479e-05,2]
[421126621,1777116632943,-1535994.31682487,9.48e-05,2]
[421126622,1777116632958,-76947.02294923,9.48e-05,2]
[421126623,1777116632971,-153611.10204686,9.48e-05,2]
[421126624,1777116632985,-675.352,9.48e-05,2]
[421126625,1777116632998,-1652.648,9.48e-05,2]
[421126627,1777116638225,-304.0,9.48e-05,2]
[421126628,1777116638600,-854.89531387,9.48e-05,2]
[421126637,1777116640289,-1515.4,9.48e-05,2]
[421126647,1777116643156,-326.87461134,9.479e-05,2]
[421126648,1777116643168,-73706.08046517,9.48e-05,2]
[421126649,1777116643178,-133369.25722336,9.492e-05,2]
[421126654,1777116646388,-5122.10611139,9.492e-05,2]
[421126655,1777116646590,-5532.0,9.492e-05,2]
[421126663,1777116731654,-300.0,9.379e-05,2]
[421126664,1777116731692,-9400.01,9.38e-05,2]
[421126665,1777116734588,-10000.01,9.38e-05,2]
[421126666,1777116737585,-10000.01,9.38e-05,2]
[421126667,1777117508943,150.0,8.334e-05,2]
[421126668,1777117509003,150.0,8.519e-05,2]
[421126669,1777117513048,150.0,8.334e-05,2]
[421126670,1777117513117,150.0,8.519e-05,2]
[421126671,1777117514898,150.0,8.334e-05,2]
[421126672,1777117518134,150.0,8.334e-05,2]
[421126673,1777117518213,150.0,8.334e-05,2]
[421126674,1777117518283,150.0,8.519e-05,2]
[421126675,1777117518595,180.78637884,8.334e-05,2]
[421126676,1777117523471,150.0,8.334e-05,2]
[421126677,1777117529551,150.0,8.334e-05,2]
[421126678,1777117529594,150.0,8.519e-05,2]
[421126679,1777117532289,150.0,8.334e-05,2]
[421126680,1777117532708,150.0,8.334e-05,2]
[421126681,1777117532832,150.0,8.405e-05,2]
[421126682,1777117532866,150.0,8.477e-05,2]
[421126683,1777117532905,150.0,8.548e-05,2]
[421126684,1777117532938,150.0,8.619e-05,2]
[421126685,1777117533009,150.0,8.69e-05,2]
[421126686,1777117832274,-200.0,8.7e-05,3]
[421126687,1777117832284,-150.0,8.705e-05,2]
[421126688,1777117832293,-150.0,8.705e-05,2]
[421126689,1777117832302,-150.0,8.705e-05,2]
[421126690,1777117832311,-150.0,8.705e-05,2]
[421126691,1777117832321,-150.0,8.762e-05,2]
[421126692,1777117832335,-150.0,8.797e-05,2]
[421126693,1777117832346,-500.0,8.8e-05,3]
[421126694,1777117832355,-150.0,8.833e-05,2]
[421126695,1777117832365,-150.0,8.89e-05,2]
[421126696,1777117832375,-150.0,8.89e-05,2]
[421126697,1777117832384,-150.0,8.89e-05,2]
[421126698,1777117832394,-150.0,8.89e-05,2]
[421126699,1777117832403,-939.54846143,8.89e-05,2]
[421126700,1777117832412,-800.0,8.9e-05,3]
[421126701,1777117832422,-150.0,8.904e-05,2]
[421126702,1777117832432,-150.0,8.975e-05,2]
[421126703,1777117832442,-254.39,8.981e-05,2]
[421126704,1777117832452,-1200.0,8.987e-05,2]
[421126705,1777117832461,-939.54846142,8.988e-05,2]
[421126706,1777117832471,-1100.0,9e-05,3]
[421126707,1777117832481,-179.0,9.013e-05,2]
[421126708,1777117832490,-300.0,9.038e-05,2]
[421126709,1777117832500,-150.0,9.047e-05,2]
[421126710,1777117832511,-150.0,9.075e-05,2]
[421126711,1777117832520,-150.0,9.075e-05,2]
[421126712,1777117832530,-150.0,9.075e-05,2]
[421126713,1777117832539,-150.0,9.075e-05,2]
[421126714,1777117832549,-500.0,9.085e-05,2]
[421126715,1777117832558,-500.0,9.085e-05,2]
[421126716,1777117832567,-500.0,9.085e-05,2]
[421126717,1777117832576,-500.0,9.085e-05,2]
[421126718,1777117832586,-500.0,9.085e-05,2]
[421126719,1777117832595,-297.61625335,9.085e-05,2]
[421126720,1777117832604,-3179.0,9.085e-05,2]
[421126721,1777117832614,-150.0,9.085e-05,2]
[421126722,1777117832623,-150.0,9.085e-05,2]
[421126723,1777117832633,-202.34924487,9.085e-05,2]
[421126724,1777117832643,-3179.0,9.085e-05,2]
[421126725,1777117832652,-3179.0,9.085e-05,2]
[421126726,1777117832661,-3179.0,9.085e-05,2]
[421126727,1777117832671,-3179.0,9.085e-05,2]
[421126728,1777117832680,-3179.0,9.085e-05,2]
[421126729,1777117832690,-3179.0,9.085e-05,2]
[421126730,1777117832700,-3179.0,9.085e-05,2]
[421126731,1777117832709,-3179.0,9.085e-05,2]
[421126732,1777117832719,-3179.0,9.085e-05,2]
[421126733,1777117832728,-3179.0,9.085e-05,2]
[421126734,1777117832738,-3179.0,9.085e-05,2]
[421126735,1777117832747,-3179.0,9.085e-05,2]
[421126736,1777117832758,-3179.0,9.085e-05,2]
[421126737,1777117832767,-3179.0,9.085e-05,2]
[421126738,1777117832777,-3179.0,9.085e-05,2]
[421126739,1777117832787,-3179.0,9.085e-05,2]
[421126740,1777117832797,-3179.0,9.085e-05,2]
[421126741,1777117832814,-3179.0,9.085e-05,2]
[421126742,1777117832823,-3179.0,9.085e-05,2]
[421126743,1777117832832,-3179.0,9.085e-05,2]
[421126744,1777117832842,-3179.0,9.085e-05,2]
[421126745,1777117832851,-3179.0,9.085e-05,2]
[421126746,1777117832861,-3179.97912824,9.085e-05,2]
[421126747,1777117832870,-939.54846142,9.085e-05,2]
[421126748,1777117832880,-2161.746,9.094e-05,2]
[421126749,1777117832890,-155.091,9.094e-05,2]
[421126750,1777117833234,-500.0,9.096e-05,2]
[421126751,1777117833244,-500.0,9.096e-05,2]
[421126752,1777117833254,-500.0,9.096e-05,2]
[421126753,1777117833264,-500.0,9.096e-05,2]
[421126754,1777117833273,-224.4834319,9.096e-05,2]
[421126755,1777117833284,-500.0,9.096e-05,2]
[421126756,1777117833293,-500.0,9.096e-05,2]
[421126757,1777117833303,-500.0,9.096e-05,2]
[421126758,1777117833313,-500.0,9.096e-05,2]
[421126759,1777117833322,-618.64316421,9.096e-05,2]
[421126760,1777117833332,-500.0,9.096e-05,2]
[421126761,1777117833342,-150.0,9.096e-05,2]
[421126762,1777117833352,-500.0,9.096e-05,2]
[421126763,1777117833362,-500.0,9.096e-05,2]
[421126764,1777117833372,-500.0,9.096e-05,2]
[421126765,1777117833382,-500.0,9.096e-05,2]
[421126766,1777117833392,-500.0,9.096e-05,2]
[421126767,1777117833402,-500.0,9.096e-05,2]
[421126768,1777117833411,-500.0,9.096e-05,2]
[421126769,1777117833421,-500.0,9.096e-05,2]
[421126770,1777117833431,-500.0,9.096e-05,2]
[421126771,1777117833440,-475.29561519,9.096e-05,2]
[421126772,1777117833450,-500.0,9.096e-05,2]
[421126773,1777117833459,-500.0,9.096e-05,2]
[421126774,1777117833468,-500.0,9.096e-05,2]
[421126775,1777117833478,-500.0,9.096e-05,2]
[421126776,1777117833488,-500.0,9.096e-05,2]
[421126777,1777117833497,-500.0,9.096e-05,2]
[421126778,1777117833507,-500.0,9.096e-05,2]
[421126779,1777117833516,-293.12826482,9.096e-05,2]
[421126780,1777117833526,-150.0,9.096e-05,2]
[421126781,1777117833535,-150.0,9.118e-05,2]
[421126782,1777117833544,-150.0,9.138e-05,2]
[421126783,1777117833554,-500.0,9.151e-05,2]
[421126784,1777117833564,-16896.44076386,9.165e-05,2]
[421126785,1777117833573,-10000.01,9.17e-05,2]
[421126786,1777117833584,-4158.2834,9.18e-05,2]
[421126787,1777117833593,-34579.0116,9.18e-05,2]
[421126788,1777117833602,-150.0,9.189e-05,2]
[421126789,1777117833612,-241.96,9.26e-05,2]
[421126790,1777117833621,-150.0,9.26e-05,2]
[421126791,1777117833631,-150.0,9.26e-05,2]
[421126792,1777117833641,-150.0,9.26e-05,2]
[421126793,1777117833651,-186.67368105,9.26e-05,2]
[421126794,1777117833660,-150.0,9.26e-05,2]
[421126795,1777117833670,-150.0,9.26e-05,2]
[421126796,1777117833680,-150.0,9.26e-05,2]
[421126797,1777117833690,-500.0,9.27e-05,2]
[421126798,1777117833699,-578.20924308,9.279e-05,2]
[421126799,1777117833709,-200.0,9.279e-05,2]
[421126800,1777117833720,-1328.27659266,9.279e-05,2]
[421126801,1777117833730,-670.58624095,9.279e-05,2]
[421126802,1777117833739,-8882.6885148,9.279e-05,2]
[421126803,1777117833749,-151.0,9.279e-05,2]
[421126804,1777117833758,-155.77960159,9.279e-05,2]
[421126805,1777117833768,-194.72792766,9.279e-05,2]
[421126806,1777117833777,-152.0,9.279e-05,2]
[421126807,1777117833787,-152.0,9.279e-05,2]
[421126808,1777117833797,-152.56372789,9.279e-05,2]
[421126809,1777117833807,-195.93456364,9.279e-05,2]
[421126810,1777117833816,-194.72792766,9.279e-05,2]
[421126811,1777117833826,-743.50770149,9.279e-05,2]
[421126812,1777117833836,-160.73813854,9.279e-05,2]
[421126813,1777117833846,-174.61919141,9.279e-05,2]
[421126814,1777117833856,-644.79446246,9.279e-05,2]
[421126815,1777117833865,-907.94874508,9.279e-05,2]
[421126816,1777117833875,-287.07821005,9.279e-05,2]
[421126817,1777117833885,-194.72792766,9.279e-05,2]
[421126818,1777117833895,-1093.83820704,9.279e-05,3]
[421126819,1777117833904,-250.0,9.279e-05,2]
[421126820,1777117833915,-22532.50670603,9.28e-05,2]
[421126821,1777117833958,-145814.29215679,9.28e-05,2]
[421126822,1777117833975,-3882.2,9.28e-05,2]
[421126823,1777117834010,-11036.00020077,9.28e-05,2]
[421126824,1777117838420,-524.0,9.28e-05,2]
[421126825,1777117838440,-1316211.00093641,9.28e-05,2]
[421126826,1777117838456,-3670.934,9.28e-05,2]
[421126827,1777117838472,-219.86,9.29e-05,2]
[421126828,1777117838488,-5018.71878087,9.29e-05,2]
[421126829,1777117838503,-5000.0,9.29e-05,2]
[421126830,1777117838519,-5000.0,9.29e-05,2]
[421126831,1777117838535,-5000.0,9.29e-05,2]
[421126832,1777117838551,-5000.0,9.29e-05,2]
[421126833,1777117838567,-9211.34798985,9.334e-05,2]
[421126834,1777117838583,-151.0,9.334e-05,2]
[421126835,1777117838599,-240.86701685,9.359e-05,2]
[421126836,1777117838614,-150.0,9.359e-05,2]
[421126837,1777117838631,-500.0,9.37e-05,2]
[421126838,1777117838646,-7455.94189002,9.37e-05,2]
[421126839,1777117838663,-153.45764577,9.377e-05,2]
[421126840,1777117838680,-662.19938871,9.379e-05,2]
[421126841,1777117838696,-322.536416,9.38e-05,2]
[421126842,1777117838712,-322.536416,9.38e-05,2]
[421126843,1777117838728,-322.536416,9.38e-05,2]
[421126844,1777117838744,-322.536416,9.38e-05,2]
[421126845,1777117838760,-153.0,9.38e-05,3]
[421126846,1777117838776,-9552.16786547,9.389e-05,2]
[421126848,1777117838792,-151.0,9.389e-05,2]
[421126850,1777117838809,-7753.55616747,9.389e-05,2]
[421126851,1777117838825,-9905.5980765,9.444e-05,2]
[421126853,1777117838841,-151.0,9.444e-05,2]
[421126856,1777117838858,-369.94,9.445e-05,2]
[421126858,1777117838873,-500.0,9.453e-05,2]
[421126861,1777117838890,-500.0,9.453e-05,2]
[421126864,1777117838905,-594.02702041,9.453e-05,2]
[421126867,1777117838922,-168.07656333,9.453e-05,2]
[421126869,1777117838937,-160.16400189,9.453e-05,2]
[421126872,1777117838952,-500.0,9.453e-05,2]
[421126875,1777117838969,-500.0,9.453e-05,2]
[421126877,1777117838985,-157.70078643,9.453e-05,2]
[421126880,1777117839001,-260.09179867,9.453e-05,2]
[421126882,1777117839016,-160.1778085,9.453e-05,2]
[421126885,1777117839032,-166.98975677,9.453e-05,2]
[421126887,1777117839048,-500.0,9.453e-05,2]
[421126890,1777117839064,-234.48839257,9.453e-05,2]
[421126893,1777117839079,-500.0,9.453e-05,2]
[421126895,1777117839095,-500.0,9.453e-05,2]
[421126897,1777117839111,-500.0,9.453e-05,2]
[421126899,1777117839126,-500.0,9.453e-05,2]
[421126902,1777117839142,-500.0,9.453e-05,2]
[421126904,1777117839159,-500.0,9.453e-05,2]
[421126906,1777117839175,-500.0,9.453e-05,2]
[421126909,1777117839189,-169.94144687,9.453e-05,2]
[421126911,1777117839204,-500.0,9.453e-05,2]
[421126914,1777117839219,-501.04467352,9.453e-05,2]
[421126916,1777117839234,-165.34482115,9.453e-05,2]
[421126919,1777117839249,-500.0,9.453e-05,2]
[421126921,1777117839264,-500.0,9.453e-05,2]
[421126924,1777117839279,-160.68969047,9.453e-05,2]
[421126926,1777117839294,-160.14805109,9.453e-05,2]
[421126929,1777117839308,-160.17397555,9.453e-05,2]
[421126932,1777117839329,-500.0,9.453e-05,2]
[421126935,1777117839348,-200.24045914,9.453e-05,2]
[421126938,1777117839367,-500.0,9.453e-05,2]
[421126941,1777117839384,-164.72079016,9.453e-05,2]
[421126944,1777117839402,-500.0,9.453e-05,2]
[421126946,1777117839419,-500.0,9.453e-05,2]
[421126949,1777117839436,-500.0,9.453e-05,2]
[421126950,1777117839453,-500.0,9.453e-05,2]
[421126951,1777117839470,-3447.33475922,9.455e-05,2]
[421126952,1777117839487,-8122.8220734,9.479e-05,2]
[421126953,1777117839504,-207480.1008762,9.479e-05,2]
[421126954,1777117839519,-3165.5668975,9.479e-05,2]
[421126955,1777117839536,-3496.456895,9.479e-05,2]
[421126956,1777117839552,-77277.1273501,9.479e-05,2]
[421126957,1777117839568,-1684.4252679,9.479e-05,2]
[421126958,1777117839585,-9425.8619447,9.479e-05,2]
[421126959,1777117839600,-345.27157787,9.479e-05,2]
[421126960,1777117839617,-322.536416,9.479e-05,2]
[421126961,1777117839634,-322.536416,9.479e-05,2]
[421126962,1777117839649,-322.536416,9.479e-05,2]
[421126963,1777117839665,-322.536416,9.479e-05,2]
[421126964,1777117839680,-151.0,9.479e-05,2]
[421126965,1777117839701,-174.915748,9.479e-05,2]
[421126966,1777117839718,-174.915748,9.479e-05,2]
[421126967,1777117839735,-174.915748,9.479e-05,2]
[421126968,1777117839751,-174.915748,9.479e-05,2]
[421126969,1777117839766,-500.0,9.479e-05,2]
[421126970,1777117839783,-500.0,9.479e-05,2]
[421126971,1777117839798,-500.0,9.479e-05,2]
[421126972,1777117839813,-500.0,9.479e-05,2]
[421126973,1777117839829,-500.0,9.479e-05,2]
[421126974,1777117839845,-500.0,9.479e-05,2]
[421126975,1777117839860,-500.0,9.479e-05,2]
[421126976,1777117839877,-500.0,9.479e-05,2]
[421126977,1777117839893,-500.0,9.479e-05,2]
[421126978,1777117839909,-500.0,9.479e-05,2]
[421126979,1777117839925,-500.0,9.479e-05,2]
[421126980,1777117839941,-500.0,9.479e-05,2]
[421126981,1777117839958,-500.0,9.479e-05,2]
[421126982,1777117839973,-500.0,9.479e-05,2]
[421126983,1777117839989,-500.0,9.479e-05,2]
[421126984,1777117840004,-500.0,9.479e-05,2]
[421126985,1777117840019,-500.0,9.479e-05,2]
[421126986,1777117840034,-500.0,9.479e-05,2]
[421126987,1777117840056,-500.0,9.479e-05,2]
[421126988,1777117840074,-500.0,9.479e-05,2]
[421126989,1777117840090,-500.0,9.479e-05,2]
[421126990,1777117840105,-500.0,9.479e-05,2]
[421126991,1777117840121,-500.0,9.479e-05,2]
[421126992,1777117840139,-500.0,9.479e-05,2]
[421126993,1777117840155,-500.0,9.479e-05,2]
[421126994,1777117840170,-500.0,9.479e-05,2]
[421126995,1777117840184,-500.0,9.479e-05,2]
[421126996,1777117840199,-500.0,9.479e-05,2]
[421126997,1777117840215,-500.0,9.479e-05,2]
[421126998,1777117840230,-500.0,9.479e-05,2]
[421127000,1777117840245,-500.0,9.479e-05,2]
[421127001,1777117840259,-500.0,9.479e-05,2]
[421127002,1777117840275,-500.0,9.479e-05,2]
[421127003,1777117840289,-500.0,9.479e-05,2]
[421127004,1777117840304,-500.0,9.479e-05,2]
[421127005,1777117840320,-500.0,9.479e-05,2]
[421127006,1777117840334,-500.0,9.479e-05,2]
[421127007,1777117840349,-500.0,9.479e-05,2]
[421127008,1777117840363,-500.0,9.479e-05,2]
[421127009,1777117840379,-500.0,9.479e-05,2]
[421127010,1777117840393,-500.0,9.479e-05,2]
[421127011,1777117840412,-500.0,9.479e-05,2]
[421127014,1777117840426,-500.0,9.479e-05,2]
[421127016,1777117840442,-500.0,9.479e-05,2]
[421127017,1777117840457,-500.0,9.479e-05,2]
[421127018,1777117840472,-500.0,9.479e-05,2]
[421127019,1777117840487,-500.0,9.479e-05,2]
[421127020,1777117840501,-500.0,9.479e-05,2]
[421127021,1777117840517,-500.0,9.479e-05,2]
[421127022,1777117840531,-500.0,9.479e-05,2]
[421127023,1777117840545,-500.0,9.479e-05,2]
[421127024,1777117840559,-500.0,9.479e-05,2]
[421127025,1777117840574,-500.0,9.479e-05,2]
[421127026,1777117840588,-500.0,9.479e-05,2]
[421127027,1777117840603,-500.0,9.479e-05,2]
[421127028,1777117840617,-500.0,9.479e-05,2]
[421127029,1777117840631,-500.0,9.479e-05,2]
[421127030,1777117840645,-500.0,9.479e-05,2]
[421127031,1777117840661,-500.0,9.479e-05,2]
[421127032,1777117840676,-500.0,9.479e-05,2]
[421127033,1777117840692,-500.0,9.479e-05,2]
[421127034,1777117840707,-500.0,9.479e-05,2]
[421127035,1777117840722,-500.0,9.479e-05,2]
[421127036,1777117840738,-500.0,9.479e-05,2]
[421127037,1777117840755,-500.0,9.479e-05,2]
[421127038,1777117840770,-500.0,9.479e-05,2]
[421127039,1777117840787,-500.0,9.479e-05,2]
[421127040,1777117840805,-500.0,9.479e-05,2]
[421127041,1777117840831,-500.0,9.479e-05,2]
[421127045,1777117841632,-500.0,9.479e-05,2]
[421127046,1777117841685,-500.0,9.479e-05,2]
[421127047,1777117841709,-500.0,9.479e-05,2]
[421127048,1777117841718,-500.0,9.479e-05,2]
[421127049,1777117841728,-500.0,9.479e-05,2]
[421127050,1777117841745,-500.0,9.479e-05,2]
[421127051,1777117841754,-500.0,9.479e-05,2]
[421127052,1777117841764,-500.0,9.479e-05,2]
[421127053,1777117841774,-500.0,9.479e-05,2]
[421127054,1777117841784,-500.0,9.479e-05,2]
[421127055,1777117841794,-500.0,9.479e-05,2]
[421127056,1777117841804,-500.0,9.479e-05,2]
[421127057,1777117841814,-500.0,9.479e-05,2]
[421127058,1777117841824,-151.0,9.492e-05,2]
[421127059,1777117841834,-151.0,9.492e-05,2]
[421127060,1777117841844,-874.01,9.492e-05,2]
[421127061,1777117841854,-500.0,9.492e-05,2]
[421127062,1777117841864,-322.536416,9.492e-05,2]
[421127063,1777117841874,-322.536416,9.492e-05,2]
[421127064,1777117841884,-322.536416,9.492e-05,2]
[421127065,1777117841894,-322.536416,9.492e-05,2]
[421127066,1777117841904,-151.0,9.492e-05,2]
[421127067,1777117841914,-174.915748,9.492e-05,2]
[421127068,1777117841924,-174.915748,9.492e-05,2]
[421127069,1777117841934,-174.915748,9.492e-05,2]
[421127070,1777117841944,-174.915748,9.492e-05,2]
[421127071,1777117841954,-56708.15417971,9.492e-05,2]
[421127072,1777117841964,-152.0,9.493e-05,7]
[421127073,1777117841974,-152.0,9.493e-05,7]
[421127074,1777117841985,-1305.82318534,9.497e-05,2]
[421127075,1777117841995,-10272.10520533,9.499e-05,2]
[421127076,1777117842006,-151.0,9.499e-05,2]
[421127077,1777117842016,-350.0,9.506e-05,2]
[421127078,1777117842026,-152.0,9.508e-05,7]
[421127079,1777117842036,-152.0,9.518e-05,7]
[421127080,1777117842047,-1056.52864806,9.554e-05,2]
[421127081,1777117842056,-151.0,9.554e-05,2]
[421127082,1777117842066,-300.0,9.57e-05,2]
[421127083,1777117842077,-191.09352535,9.57e-05,2]
[421127084,1777117842087,-300.0,9.575e-05,2]
[421127085,1777117842097,-5000.0,9.575e-05,2]
[421127086,1777117842107,-250.0,9.575e-05,2]
[421127087,1777117842116,-193.0,9.575e-05,2]
[421127088,1777117842132,-3492.04467031,9.575e-05,2]
[421127089,1777117842142,-1101.2917872,9.579e-05,3]
[421127090,1777117842153,-1475.0,9.579e-05,5]
[421127091,1777117842163,-1434.0,9.579e-05,5]
[421127092,1777117842173,-250.66,9.589e-05,2]
[421127093,1777117842183,-161.0,9.59e-05,2]
[421127094,1777117842192,-151.0,9.609e-05,2]
[421127095,1777117842203,-151.0,9.664e-05,2]
[421127096,1777117842212,-29346.14,9.67e-05,2]
[421127097,1777117842222,-322.536416,9.67e-05,2]
[421127098,1777117842232,-322.536416,9.67e-05,2]
[421127099,1777117842242,-322.536416,9.67e-05,2]
[421127100,1777117842252,-322.536416,9.67e-05,2]
[421127101,1777117842262,-488.05669362,9.68e-05,2]
[421127102,1777117842273,-314.45724369,9.68e-05,2]
[421127103,1777117842283,-1950.27454769,9.68e-05,2]
[421127104,1777117842293,-1256.57114578,9.68e-05,2]
[421127105,1777117842304,-151.0,9.69e-05,2]
[421127106,1777117842314,-1101.2917872,9.692e-05,3]
[421127107,1777117842324,-150.0,9.692e-05,2]
[421127108,1777117842334,-151.0,9.693e-05,2]
[421127109,1777117842344,-151.0,9.693e-05,2]
[421127110,1777117842354,-151.0,9.719e-05,2]
[421127111,1777117842365,-874.01,9.766e-05,2]
[421127112,1777117842375,-151.0,9.774e-05,2]
[421127113,1777117842386,-151.0,9.79e-05,2]
[421127114,1777117842395,-160.0,9.801e-05,2]
[421127115,1777117842405,-4493.951217,9.801e-05,2]
[421127116,1777117842415,-8827.902434,9.801e-05,2]
[421127117,1777117842425,-160.0,9.801e-05,2]
[421127118,1777117842435,-1407.705951,9.801e-05,2]
[421127119,1777117842445,-2655.411903,9.801e-05,2]
[421127120,1777117842454,-280.170055,9.801e-05,2]
[421127121,1777117842464,-160.0,9.801e-05,2]
[421127122,1777117842474,-6099.399216,9.801e-05,2]
[421127123,1777117842484,-12038.798432,9.801e-05,2]
[421127124,1777117842494,-200.0,9.827e-05,2]
[421127125,1777117842507,-1377.42282659,9.827e-05,2]
[421127126,1777117842517,-194.72792766,9.827e-05,2]
[421127127,1777117842531,-201.93286099,9.827e-05,2]
[421127128,1777117842540,-747.37233328,9.827e-05,2]
[421127129,1777117842551,-181.08010149,9.827e-05,2]
[421127130,1777117842561,-464.50893001,9.827e-05,2]
[421127131,1777117842571,-210.62726821,9.827e-05,2]
[421127132,1777117842581,-151.0,9.829e-05,2]
[421127133,1777117842590,-300.0,9.879e-05,2]
[421127134,1777117842600,-1850.0,9.882e-05,5]
[421127135,1777117842610,-151.0,9.884e-05,2]
[421127136,1777117842620,-1680.0,9.885e-05,2]
[421127137,1777117842631,-350.0,9.892e-05,2]
[421127138,1777117842641,-151.0,9.939e-05,2]
[421127139,1777117842651,-161.0,9.95e-05,2]
[421127140,1777117842661,-250.0,9.962e-05,2]
[421127141,1777117842671,-250.0,9.962e-05,2]
[421127142,1777117842681,-572.50356813,0.0001,2]
[421127143,1777117842691,-1379.55720605,0.0001,2]
[421127144,1777117842701,-575.9552791,0.0001,2]
[421127145,1777117842712,-544.66760871,0.0001,2]
[421127146,1777117842722,-1300.94801787,0.0001,2]
[421127147,1777117842732,-16591.0,0.0001,2]
[421127148,1777117842743,-312.53589212,0.0001,2]